bitfinex/quotes_SOLUSD_20251116
["timestamp","ask_amount","ask_price","bid_price","bid_amount"]
[1763305562791,0.67,140.39,140.32,9.78882769]
[1763305562998,5.45186889,140.41,140.32,9.78882769]
[1763305563193,5.45186889,140.41,140.33,0.67]
[1763305563378,0.67,140.41,140.33,0.67]
[1763305563573,0.67,140.41,140.35,9.78882769]
[1763305564070,0.67,140.41,140.36,0.67]
[1763305564768,0.67,140.41,140.37,7.12402935]
[1763305564991,0.67,140.43,140.37,7.12402935]
[1763305565296,0.67,140.42,140.37,7.79402935]
[1763305565871,0.67,140.42,140.35,9.78882769]
[1763305566075,0.67,140.42,140.35,16.91386419]
[1763305566783,7.12199985,140.41,140.35,16.91386419]
[1763305567101,24.92699949,140.41,140.32,9.78882769]
[1763305567396,0.67,140.4,140.31,0.67]
[1763305567787,0.67,140.4,140.31,23.3212]
[1763305567988,22.6512,140.38,140.31,7.79707576]
[1763305568295,29.77478504,140.38,140.31,7.79707576]
[1763305568615,0.67,140.37,140.29,23.3212]
[1763305569506,0.67,140.37,140.3,0.67]
[1763305569795,0.67,140.37,140.31,9.78882769]
[1763305570002,7.79453646,140.37,140.31,9.78882769]
[1763305570171,0.67,140.36,140.29,30.44927614]
[1763305570768,0.67,140.38,140.3,10.45882769]
[1763305571188,0.67,140.38,140.31,0.67]
[1763305572111,0.67,140.38,140.32,7.12656784]
[1763305572311,0.67,140.38,140.32,7.79656784]
[1763305572513,7.79361355,140.38,140.32,7.79656784]
[1763305573105,0.67,140.37,140.32,7.79656784]
[1763305574276,7.79405665,140.37,140.32,7.79656784]
[1763305574703,0.69,140.36,140.32,7.79656784]
[1763305575299,7.81453885,140.36,140.31,7.12707576]
[1763305575803,0.72,140.35,140.32,0.7]
[1763305575979,0.72,140.35,140.31,7.82707576]
[1763305576178,0.72,140.35,140.29,22.6512]
[1763305576378,0.72,140.35,140.27,9.78882769]
[1763305576691,0.72,140.35,140.27,0.7]
[1763305577079,22.6512,140.33,140.25,0.7]
[1763305577283,7.12707576,140.31,140.21,7.1321589]
[1763305577486,7.12707576,140.31,140.24,22.6512]
[1763305577699,0.72,140.3,140.24,22.6512]
[1763305577888,0.72,140.3,140.24,23.3512]
[1763305578706,7.1280918,140.29,140.23,16.91982307]
[1763305579108,0.72,140.28,140.23,16.91982307]
[1763305579284,0.72,140.28,140.23,9.78882769]
[1763305580083,0.72,140.28,140.23,16.91983733]
[1763305580300,0.72,140.28,140.23,10.48882769]
[1763305580608,0.72,140.28,140.23,17.61979371]
[1763305583098,0.72,140.28,140.23,34.74764794]
[1763305583297,104.92,140.31,140.24,10.48882769]
[1763305583500,104.2,140.31,140.24,10.48882769]
[1763305583713,104.2,140.31,140.26,9.78882769]
[1763305583918,104.92,140.31,140.26,9.78882769]
[1763305584124,0.72,140.3,140.26,0.7]
[1763305585414,0.72,140.3,140.26,7.82919736]
[1763305586326,0.72,140.33,140.27,10.48882769]
[1763305586528,22.6512,140.35,140.27,10.48882769]
[1763305586529,0.72,140.34,140.27,10.48882769]
[1763305586733,0.72,140.33,140.28,0.7]
[1763305587618,7.84631351,140.33,140.28,0.7]
[1763305587924,7.84631351,140.33,140.28,7.8284968]
[1763305588113,0.72,140.32,140.28,7.8284968]
[1763305589532,0.72,140.33,140.29,0.7]
[1763305589701,0.72,140.33,140.29,7.82800233]
[1763305590733,0.72,140.33,140.28,17.82149985]
[1763305590921,0.72,140.33,140.28,24.95009979]
[1763305591435,0.72,140.33,140.28,25.65009979]
[1763305593231,7.84610409,140.33,140.28,0.7]
[1763305593543,7.84610409,140.33,140.28,7.8284163]
[1763305593732,0.72,140.32,140.28,7.8284163]
[1763305595115,0.72,140.32,140.29,0.7]
[1763305595310,7.12565295,140.34,140.29,0.7]
[1763305595510,0.72,140.33,140.29,0.7]
[1763305595935,7.84519706,140.35,140.29,0.7]
[1763305596438,0.72,140.34,140.29,0.7]
[1763305596623,0.72,140.34,140.3,7.12758374]
[1763305597436,7.84569798,140.34,140.3,7.12758374]
[1763305598014,0.72,140.33,140.3,7.12758374]
[1763305600719,0.72,140.35,140.31,0.7]
[1763305601442,0.72,140.35,140.3,7.82758374]
[1763305602023,7.84525678,140.35,140.3,7.82758374]
[1763305602348,0.72,140.34,140.3,7.82758374]
[1763305602854,0.72,140.34,140.3,7.12758374]
[1763305603222,0.72,140.34,140.3,10.48882769]
[1763305604523,0.72,140.34,140.3,10.46882769]
[1763305605350,0.72,140.34,140.31,7.12707576]
[1763305609056,0.72,140.34,140.31,7.80707576]
[1763305612356,0.72,140.34,140.31,7.12707576]
[1763305612559,0.72,140.34,140.31,7.80707576]
[1763305612758,104.2,140.36,140.32,10.46882769]
[1763305612961,104.9,140.39,140.33,0.68]
[1763305613263,0.7,140.39,140.34,9.78882769]
[1763305613462,0.7,140.39,140.35,0.68]
[1763305614146,7.82306726,140.39,140.34,0.68]
[1763305614340,7.82306726,140.39,140.32,9.78882769]
[1763305614564,7.82399058,140.38,140.33,7.12606]
[1763305614729,12.61490296,140.38,140.33,7.12606]
[1763305615056,28.63403376,140.42,140.33,7.12606]
[1763305615057,0.7,140.37,140.33,7.12606]
[1763305615363,0.7,140.37,140.32,10.46882769]
[1763305615535,0.7,140.37,140.33,0.68]
[1763305616476,7.82421774,140.37,140.32,10.46882769]
[1763305616984,0.7,140.36,140.32,17.59534322]
[1763305619067,0.7,140.36,140.33,7.80602783]
[1763305620260,4.79061884,140.38,140.33,7.12602783]
[1763305620450,0.7,140.38,140.34,0.68]
[1763305622358,0.7,140.38,140.34,7.80528777]
[1763305622560,7.82356947,140.38,140.32,9.78882769]
[1763305622740,0.7,140.37,140.32,10.46882769]
[1763305623442,0.7,140.37,140.32,17.59528186]
[1763305624582,0.7,140.37,140.33,0.68]
[1763305625070,0.7,140.39,140.33,0.68]
[1763305625236,5.48991543,140.4,140.34,9.78882769]
[1763305625436,0.7,140.39,140.34,9.78882769]
[1763305625656,0.7,140.39,140.34,10.46882769]
[1763305625864,0.7,140.39,140.35,0.68]
[1763305626071,0.7,140.39,140.34,10.46882769]
[1763305626276,0.7,140.39,140.32,7.12645417]
[1763305626444,5.48991543,140.39,140.32,7.12645417]
[1763305626642,5.48991543,140.39,140.33,10.46882769]
[1763305626860,12.61253036,140.4,140.33,10.46882769]
[1763305627055,12.61253036,140.4,140.34,0.68]
[1763305627471,5.48991543,140.4,140.34,0.68]
[1763305627666,0.7,140.4,140.34,0.68]
[1763305628263,7.82253206,140.4,140.34,0.68]
[1763305628582,104.9,140.41,140.36,9.78882769]
[1763305628760,104.9,140.41,140.37,0.68]
[1763305629273,0.7,140.44,140.38,9.78882769]
[1763305629459,0.7,140.45,140.38,9.78882769]
[1763305629664,53.0587884,140.47,140.4,9.78882769]
[1763305629865,5.49091706,140.46,140.4,9.78882769]
[1763305630383,7.81848491,140.48,140.42,9.78882769]
[1763305630585,7.81848491,140.48,140.42,16.90984879]
[1763305630775,30.46968491,140.48,140.42,17.58984879]
[1763305630970,30.46968491,140.48,140.42,16.90984879]
[1763305631175,0.7,140.47,140.42,17.58984879]
[1763305631382,0.7,140.47,140.39,7.80295763]
[1763305631687,0.7,140.47,140.39,0.68]
[1763305631984,5.48608539,140.47,140.38,17.59229142]
[1763305632288,22.6512,140.45,140.37,9.78882769]
[1763305632463,4.78608539,140.44,140.37,9.78882769]
[1763305632669,7.12149266,140.42,140.37,16.91255765]
[1763305633191,0.7,140.41,140.37,10.46882769]
[1763305633375,0.7,140.41,140.37,9.78882769]
[1763305633891,0.7,140.41,140.37,16.9127027]
[1763305634288,8.20328433,140.49,140.37,16.9127027]
[1763305634468,8.20328433,140.49,140.41,9.78882769]
[1763305634469,0.65,140.48,140.41,9.78882769]
[1763305634669,0.65,140.48,140.43,9.78882769]
[1763305635069,0.2,140.49,140.44,0.72]
[1763305635364,0.2,140.49,140.45,9.78882769]
[1763305635570,0.2,140.49,140.47,9.78882769]
[1763305636095,0.2,140.49,140.48,10.50882769]
[1763305636592,0.2,140.52,140.51,39.55695886]
[1763305636968,0.2,140.52,140.51,40.27695886]
[1763305637602,1e-08,140.52,140.51,40.27695886]
[1763305639993,1e-08,140.52,140.51,39.55695886]
[1763305640201,1e-08,140.52,140.51,16.90575886]
[1763305640377,1e-08,140.52,140.5,7.11731034]
[1763305641078,1e-08,140.52,140.49,10.50882769]
[1763305641498,1e-08,140.52,140.49,16.90673772]
[1763305641679,1e-08,140.52,140.49,17.62673772]
[1763305642798,1e-08,140.52,140.51,9.78882769]
[1763305643190,1e-08,140.52,140.51,0.72]
[1763305643393,1e-08,140.52,140.51,7.83693117]
[1763305644491,1e-08,140.52,140.51,40.27695886]
[1763305646616,1e-08,140.52,140.51,17.62575886]
[1763305647982,1e-08,140.52,140.51,39.55695886]
[1763305648194,1e-08,140.52,140.51,32.44002769]
[1763305648405,1e-08,140.52,140.51,9.78882769]
[1763305648603,0.68000001,140.52,140.48,7.11845102]
[1763305648987,0.68000001,140.52,140.49,9.78882769]
[1763305650007,0.68000001,140.52,140.5,7.11743772]
[1763305651998,0.68000001,140.52,140.47,22.6512]
[1763305652210,7.79657132,140.52,140.45,7.11964297]
[1763305652428,0.68,140.51,140.43,7.12098554]
[1763305652730,0.68,140.51,140.44,9.78882769]
[1763305652901,0.68,140.51,140.44,10.50882769]
[1763305653098,0.68,140.51,140.46,9.78882769]
[1763305653424,7.79698862,140.51,140.45,9.78882769]
[1763305653824,0.68,140.5,140.45,9.78882769]
[1763305655302,0.68,140.5,140.46,7.11946461]
[1763305655732,0.68,140.5,140.45,16.90866216]
[1763305656527,0.68,140.5,140.41,39.56202754]
[1763305656528,7.79761136,140.5,140.41,39.56202754]
[1763305656709,7.79761136,140.5,140.41,58.08702718]
[1763305656911,0.68,140.49,140.41,58.08702718]
[1763305657310,7.7982514,140.49,140.41,58.08702718]
[1763305657510,7.7982514,140.49,140.41,57.36702718]
[1763305657814,0.68,140.48,140.41,57.36702718]
[1763305658014,0.68,140.48,140.4,17.1]
[1763305658212,0.68,140.48,140.37,18.52952186]
[1763305658417,0.68,140.48,140.38,32.44002769]
[1763305659138,0.68,140.48,140.38,57.37235422]
[1763305659342,24.91635224,140.47,140.38,39.56354955]
[1763305659798,0.68,140.46,140.38,39.56354955]
[1763305660224,0.68,140.46,140.38,57.37235422]
[1763305661117,0.68,140.46,140.38,39.56354955]
[1763305661323,7.11997152,140.45,140.38,39.56354955]
[1763305661707,0.68,140.44,140.38,57.37235422]
[1763305662004,0.68,140.44,140.38,9.78882769]
[1763305662312,0.68,140.44,140.37,7.12386063]
[1763305663532,7.12098554,140.43,140.37,7.12386063]
[1763305663831,7.80063315,140.44,140.37,7.12386063]
[1763305664025,0.67,140.43,140.37,7.12386063]
[1763305664210,0.67,140.43,140.37,25.613934]
[1763305664414,22.6512,140.46,140.38,10.46882769]
[1763305664618,0.67,140.44,140.38,10.46882769]
[1763305666151,0.67,140.44,140.39,17.59184214]
[1763305666625,0.67,140.44,140.4,10.46882769]
[1763305666829,7.11906245,140.47,140.4,10.46882769]
[1763305667028,0.67,140.46,140.4,10.46882769]
[1763305667232,0.67,140.46,140.42,9.78882769]
[1763305667652,0.67,140.46,140.42,0.68]
[1763305667857,0.67,140.46,140.4,9.78882769]
[1763305668043,0.67,140.46,140.4,10.46882769]
[1763305668237,0.67,140.46,140.42,9.78882769]
[1763305669344,0.67,140.46,140.43,7.12098554]
[1763305670353,7.7895272,140.46,140.41,16.9106279]
[1763305670552,7.7895272,140.46,140.41,7.12180021]
[1763305670747,0.67,140.45,140.41,7.80180021]
[1763305671662,0.67,140.45,140.41,25.60679985]
[1763305674766,0.67,140.45,140.41,7.12180021]
[1763305675341,0.67,140.48,140.42,10.46882769]
[1763305675552,0.67,140.47,140.42,10.46882769]
[1763305675854,0.67,140.47,140.43,7.12098554]
[1763305677045,104.87,140.49,140.44,10.46882769]
[1763305677364,0.67,140.48,140.44,10.46882769]
[1763305677872,0.67,140.48,140.45,7.11997152]
[1763305680256,40.44284164,140.52,140.45,7.11997152]
[1763305680257,29.76778097,140.52,140.46,10.46882769]
[1763305680450,0.67,140.51,140.46,10.46882769]
[1763305680786,1e-08,140.52,140.48,9.78882769]
[1763305680976,0.67000001,140.52,140.45,25.59990032]
[1763305681148,0.67000001,140.52,140.46,9.78882769]
[1763305681553,0.67000001,140.52,140.48,9.78882769]
[1763305681750,7.7865938,140.52,140.48,9.78882769]
[1763305681991,7.7865938,140.52,140.46,0.68]
[1763305682283,0.67,140.51,140.46,0.68]
[1763305682591,0.67,140.51,140.46,7.79932891]
[1763305683490,7.11743772,140.5,140.39,35.61478263]
[1763305683699,7.11743772,140.5,140.41,27.59382733]
[1763305683856,0.67,140.49,140.41,50.24502733]
[1763305684181,0.67,140.49,140.41,50.92502733]
[1763305684385,22.6512,140.47,140.38,7.12306841]
[1763305684553,22.6512,140.47,140.36,7.12406816]
[1763305684554,0.67,140.46,140.36,7.12406816]
[1763305684753,0.67,140.46,140.37,9.78882769]
[1763305687063,0.67,140.44,140.37,34.72257033]
[1763305687566,7.7909748,140.44,140.37,34.72257033]
[1763305687893,7.7909748,140.44,140.37,35.40257033]
[1763305688064,0.67,140.43,140.37,35.40257033]
[1763305688766,7.79002935,140.45,140.39,9.78882769]
[1763305688966,7.79002935,140.45,140.39,0.68]
[1763305689161,0.67,140.44,140.39,0.68]
[1763305689556,7.79086651,140.44,140.38,32.44002769]
[1763305689781,0.67,140.44,140.39,0.68]
[1763305691201,7.79050991,140.44,140.38,57.37223818]
[1763305691390,7.79050991,140.44,140.38,58.05223818]
[1763305691571,0.67,140.43,140.38,58.05223818]
[1763305691770,7.79098603,140.43,140.38,58.05223818]
[1763305692090,0.67,140.43,140.38,58.05223818]
[1763305692282,0.67,140.43,140.39,0.68]
[1763305693478,7.79111326,140.43,140.36,16.91324646]
[1763305693659,7.79111326,140.43,140.36,17.62324646]
[1763305693989,0.71,140.42,140.36,17.62324646]
[1763305694163,0.71,140.42,140.36,35.43458872]
[1763305694489,0.71,140.42,140.36,17.62324646]
[1763305694984,0.71,140.42,140.36,35.43458872]
[1763305696199,0.71,140.42,140.36,35.40458872]
[1763305696763,7.83149277,140.42,140.36,35.40458872]
[1763305697369,0.69,140.41,140.36,35.40458872]
[1763305698995,0.69,140.41,140.38,16.91234955]
[1763305700099,0.69,140.41,140.37,16.91273389]
[1763305700895,7.81213382,140.41,140.37,16.91273389]
[1763305701270,0.69,140.4,140.37,16.91273389]
[1763305701981,0.69,140.4,140.36,16.91332807]
[1763305702185,0.69,140.4,140.36,9.78882769]
[1763305702811,0.69,140.4,140.35,9.78882769]
[1763305703305,7.12301445,140.39,140.34,7.22541591]
[1763305703802,0.69,140.38,140.34,7.90541591]
[1763305704016,0.69,140.38,140.34,9.88882769]
[1763305704389,0.69,140.38,140.34,17.01419058]
[1763305704704,0.69,140.38,140.34,7.22536289]
[1763305705210,7.8135954,140.38,140.34,7.22536289]
[1763305705407,7.8135954,140.38,140.34,0.1]
[1763305705618,0.69,140.37,140.34,0.1]
[1763305707192,7.81420148,140.37,140.34,0.1]
[1763305708023,0.69,140.36,140.34,0.1]
[1763305709422,7.81462438,140.36,140.34,0.1]
[1763305709895,0.69,140.35,140.34,0.1]
[1763305710097,7.12415073,140.37,140.34,0.1]
[1763305710312,104.2,140.39,140.35,0.68]
[1763305710512,104.89,140.39,140.35,0.68]
[1763305711291,0.69,140.39,140.36,7.1245369]
[1763305711822,0.69,140.39,140.36,9.78882769]
[1763305712199,7.81317941,140.39,140.36,9.78882769]
[1763305712401,0.69,140.38,140.36,9.78882769]
[1763305712600,0.69,140.38,140.35,7.12493476]
[1763305713000,0.69,140.38,140.34,17.69416555]
[1763305714114,7.81362704,140.38,140.34,17.69416555]
[1763305716105,7.81414704,140.37,140.34,0.1]
[1763305716623,0.69,140.36,140.34,0.1]
[1763305717339,0.69,140.36,140.26,7.90958517]
[1763305717340,22.6512,140.35,140.26,7.90958517]
[1763305717511,0.69,140.34,140.27,0.68]
[1763305717713,0.69,140.34,140.28,9.78882769]
[1763305718323,24.94121,140.33,140.28,9.78882769]
[1763305718830,0.69,140.32,140.28,10.46882769]
[1763305719412,0.69,140.34,140.3,9.78882769]
[1763305719729,0.69,140.35,140.3,9.78882769]
[1763305720334,0.69,140.35,140.3,10.46882769]
[1763305720527,7.81553869,140.35,140.3,17.59621174]
[1763305720906,0.69,140.34,140.3,9.78882769]
[1763305722631,0.69,140.34,140.3,16.91635006]
[1763305722833,7.8157558,140.34,140.3,16.91635006]
[1763305723136,0.69,140.34,140.3,17.59635006]
[1763305723338,0.69,140.35,140.31,0.68]
[1763305723528,0.69,140.34,140.31,0.68]
[1763305723923,30.46542682,140.37,140.32,9.78882769]
[1763305724413,0.69,140.36,140.32,0.7]
[1763305724608,0.69,140.36,140.32,7.82633485]
[1763305725533,7.8145404,140.36,140.31,17.61583108]
[1763305725910,0.69,140.35,140.31,17.61583108]
[1763305728434,0.69,140.35,140.32,0.7]
[1763305729141,0.69,140.35,140.32,7.82627904]
[1763305729516,7.81423233,140.37,140.33,0.7]
[1763305729716,0.69,140.36,140.32,7.12627904]
[1763305730015,0.69,140.36,140.32,7.82627904]
[1763305731424,4.78059233,140.38,140.33,10.48882769]
[1763305731750,0.69,140.37,140.33,10.48882769]
[1763305732323,0.69,140.37,140.34,0.7]
[1763305733068,112.01322767,140.39,140.34,7.82518051]
[1763305733246,0.69,140.38,140.34,7.82518051]
[1763305734760,7.81360795,140.38,140.34,7.12518051]
[1763305735062,7.81360795,140.38,140.33,9.78882769]
[1763305735063,7.81360795,140.38,140.33,16.91487405]
[1763305735264,0.69,140.37,140.33,17.61487405]
[1763305736065,0.69,140.37,140.32,7.12639523]
[1763305736279,0.69,140.37,140.32,9.78882769]
[1763305736469,0.69,140.37,140.32,10.48882769]
[1763305737149,7.1245369,140.36,140.32,17.6153593]
[1763305737360,0.69,140.35,140.32,17.6153593]
[1763305737654,0.69,140.35,140.3,0.7]
[1763305737851,0.69,140.35,140.31,10.48882769]
[1763305738051,0.69,140.35,140.31,9.78882769]
[1763305738354,0.69,140.35,140.28,7.82840016]
[1763305738550,5.47869772,140.35,140.29,9.78882769]
[1763305739061,7.12656784,140.32,140.26,9.88882769]
[1763305739275,7.12656784,140.32,140.26,0.8]
[1763305739444,0.69,140.31,140.26,0.8]
[1763305740270,0.69,140.31,140.26,0.1]
[1763305740574,22.6512,140.28,140.26,0.1]
[1763305740869,22.6512,140.27,140.26,0.1]
[1763305741075,35.26220082,140.27,140.26,0.1]
[1763305742176,35.25840034,140.27,140.26,0.1]
[1763305742359,30.47030814,140.27,140.26,0.1]
[1763305744572,0.69,140.31,140.26,7.92946878]
[1763305744753,30.46841089,140.31,140.26,10.58882769]
[1763305744953,30.46841089,140.31,140.26,9.88882769]
[1763305745168,0.69,140.3,140.26,9.88882769]
[1763305746656,0.69,140.3,140.26,17.71828515]
[1763305747056,0.69,140.3,140.26,9.88882769]
[1763305747269,7.81762942,140.3,140.26,10.58882769]
[1763305747470,0.69,140.3,140.26,17.71844269]
[1763305747661,22.6512,140.32,140.27,10.48882769]
[1763305748171,22.6512,140.32,140.28,0.7]
[1763305748472,0.69,140.35,140.29,9.78882769]
[1763305748773,0.69,140.34,140.29,16.91679418]
[1763305748977,0.69,140.34,140.29,17.61679418]
[1763305749161,0.69,140.34,140.3,0.7]
[1763305750284,0.69,140.34,140.29,9.78882769]
[1763305750458,0.69,140.34,140.29,10.48882769]
[1763305750770,7.81587936,140.34,140.29,9.78882769]
[1763305750976,12.59558238,140.34,140.28,9.78882769]
[1763305751181,0.69,140.33,140.28,9.78882769]
[1763305751877,0.69,140.33,140.28,0.7]
[1763305752051,7.81624444,140.33,140.28,7.82820663]
[1763305752250,0.69,140.32,140.28,7.82820663]
[1763305753053,0.69,140.32,140.29,9.78882769]
[1763305753770,0.69,140.32,140.28,7.82857716]
[1763305753973,0.69,140.32,140.28,9.78882769]
[1763305754173,7.81698213,140.32,140.28,9.78882769]
[1763305754553,0.72,140.31,140.28,10.45882769]
[1763305754758,0.72,140.31,140.28,0.67]
[1763305755055,0.72,140.31,140.26,17.92404106]
[1763305755056,0.72,140.31,140.26,0.1]
[1763305755261,0.72,140.31,140.26,0.76]
[1763305756079,7.12758374,140.3,140.26,0.76]
[1763305756383,7.12758374,140.3,140.26,0.1]
[1763305756569,0.72,140.29,140.26,0.1]
[1763305757782,40.46761961,140.32,140.26,7.22951231]
[1763305757975,7.84718564,140.31,140.26,7.88951231]
[1763305758388,0.72,140.3,140.26,7.88951231]
[1763305758888,0.72,140.3,140.26,0.1]
[1763305760080,7.84790769,140.3,140.26,0.1]
[1763305760582,0.72,140.29,140.26,0.1]
[1763305760783,0.72,140.29,140.26,0.76]
[1763305761387,5.97575652,140.35,140.26,0.76]
[1763305761388,0.72,140.33,140.27,9.78882769]
[1763305761683,7.84607005,140.33,140.27,9.78882769]
[1763305761872,0.72,140.33,140.28,0.66]
[1763305762077,0.72,140.33,140.29,7.1280918]
[1763305762389,7.84609681,140.33,140.28,7.78840878]
[1763305762869,0.72,140.32,140.28,7.78840878]
[1763305763183,0.72,140.32,140.29,0.66]
[1763305763381,0.72,140.32,140.29,7.78785692]
[1763305764381,7.12609681,140.33,140.29,7.78785692]
[1763305764572,7.84609681,140.33,140.29,7.78785692]
[1763305764971,0.72,140.33,140.29,7.78785692]
[1763305765580,133.97681204,140.34,140.3,0.66]
[1763305765773,134.69681204,140.34,140.3,0.66]
[1763305765961,0.72,140.33,140.29,7.12785692]
[1763305766164,0.72,140.33,140.29,7.78785692]
[1763305769299,0.72,140.33,140.3,0.66]
[1763305769470,22.6512,140.36,140.31,9.78882769]
[1763305769673,0.72,140.37,140.31,9.78882769]
[1763305769992,23.3712,140.38,140.32,0.66]
[1763305770195,0.72,140.4,140.33,9.78882769]
[1763305770407,7.84271817,140.4,140.34,0.66]
[1763305770568,23.3712,140.4,140.34,0.66]
[1763305770996,30.4937352,140.4,140.35,9.78882769]
[1763305771196,0.72,140.39,140.34,7.12523896]
[1763305771509,0.72,140.39,140.33,17.57468568]
[1763305772009,23.3712,140.39,140.34,0.66]
[1763305772176,0.72,140.38,140.34,0.66]
[1763305772904,0.72,140.38,140.33,9.78882769]
[1763305773200,0.72,140.38,140.33,0.66]
[1763305774202,7.84359564,140.38,140.33,7.78567714]
[1763305774384,0.72,140.38,140.33,7.78567714]
[1763305774699,0.72,140.37,140.33,7.78567714]
[1763305775397,0.72,140.37,140.34,0.66]
[1763305775588,0.72,140.37,140.33,7.78567714]
[1763305776486,7.84413201,140.37,140.33,7.78567714]
[1763305778717,0.72,140.36,140.33,7.78567714]
[1763305779210,0.72,140.37,140.33,7.78567714]
[1763305779610,0.72,140.37,140.34,0.66]
[1763305779806,0.72,140.37,140.34,7.78551801]
[1763305779997,111.32313232,140.39,140.34,7.78551801]
[1763305780194,0.72,140.38,140.34,7.12551801]
[1763305780395,104.2,140.39,140.35,10.44882769]
[1763305780911,104.2,140.39,140.36,0.66]
[1763305782002,112.04304406,140.39,140.35,16.91365811]
[1763305782200,112.04304406,140.39,140.35,17.57365811]
[1763305782910,104.92,140.39,140.35,17.57365811]
[1763305783413,104.2,140.39,140.36,0.66]
[1763305783717,0.71,140.38,140.35,0.71]
[1763305784106,104.91,140.39,140.35,7.83466996]
[1763305784692,0.71,140.38,140.35,7.83466996]
[1763305785017,104.91,140.39,140.35,7.83466996]
[1763305785493,112.03303879,140.39,140.35,7.83466996]
[1763305786295,0.71,140.38,140.35,7.83466996]
[1763305790131,0.71,140.38,140.33,17.81440704]
[1763305790427,0.71,140.38,140.34,10.49882769]
[1763305790812,0.71,140.38,140.35,0.71]
[1763305791818,7.83360338,140.38,140.34,9.78882769]
[1763305792232,0.71,140.37,140.33,16.91444876]
[1763305792530,0.71,140.37,140.33,17.62444876]
[1763305792740,7.83404797,140.37,140.33,17.62444876]
[1763305792914,7.83404797,140.37,140.33,9.78882769]
[1763305793108,0.71,140.36,140.33,7.83596731]
[1763305793833,0.71,140.37,140.33,7.83596731]
[1763305794424,0.71,140.37,140.33,0.71]
[1763305794624,7.83405694,140.37,140.32,16.91522019]
[1763305795026,0.71,140.36,140.32,17.62522019]
[1763305796023,0.71,140.36,140.33,0.71]
[1763305796437,0.71,140.36,140.33,7.12605357]
[1763305798138,0.71,140.36,140.32,10.49882769]
[1763305798139,7.83473092,140.36,140.32,17.62532263]
[1763305799214,7.83473092,140.36,140.32,7.12649494]
[1763305799513,0.71,140.35,140.32,7.12649494]
[1763305800034,0.71,140.35,140.32,7.83649494]
[1763305800438,7.8350637,140.35,140.32,7.12649494]
[1763305800641,7.8350637,140.35,140.31,16.91568806]
[1763305800813,0.71,140.34,140.31,16.91568806]
[1763305801839,7.83565705,140.34,140.28,17.82080865]
[1763305802044,7.83565705,140.34,140.28,9.78882769]
[1763305802220,7.83565705,140.34,140.27,7.83880465]
[1763305802221,0.71,140.33,140.27,0.71]
[1763305802538,22.6512,140.31,140.25,7.8397962]
[1763305802745,22.6512,140.31,140.26,9.88882769]
[1763305803043,0.71,140.3,140.27,0.71]
[1763305803213,0.71,140.3,140.26,0.81]
[1763305803416,0.71,140.3,140.26,0.1]
[1763305803854,7.83788142,140.3,140.26,0.1]
[1763305804044,0.71,140.3,140.26,7.93958262]
[1763305804233,7.83765014,140.3,140.26,0.81]
[1763305804745,0.71,140.3,140.26,7.93954238]
[1763305805120,0.71,140.3,140.26,17.72837007]
[1763305809048,22.6512,140.31,140.27,10.49882769]
[1763305809255,104.2,140.32,140.29,9.78882769]
[1763305809432,7.12568845,140.34,140.29,9.78882769]
[1763305809433,0.71,140.34,140.3,0.71]
[1763305810337,7.83556876,140.34,140.29,9.78882769]
[1763305810538,7.83556876,140.34,140.29,10.49882769]
[1763305810747,0.71,140.33,140.29,9.78882769]
[1763305810954,0.71,140.33,140.28,7.12859994]
[1763305811157,0.71,140.33,140.28,7.83859994]
[1763305811448,7.83641765,140.33,140.28,7.83859994]
[1763305811652,7.83641765,140.33,140.26,17.01804799]
[1763305811653,25.65156765,140.33,140.26,17.01804799]